bitfinex/quotes_ETHUSD_20240621
["timestamp","ask_amount","ask_price","bid_price","bid_amount"]
[1718940378824,2.54270141,3511.1,3510.9,0.878]
[1718940378984,2.54270141,3511.0,3510.9,0.878]
[1718940380101,2.0494238,3511.0,3510.9,0.878]
[1718940380437,2.0494238,3511.8,3510.9,0.878]
[1718940380643,0.49326623,3511.0,3510.9,0.878]
[1718940380928,2.54269003,3511.6,3510.3,1.0485776]
[1718940381094,2.5426847,3511.5,3511.2,0.878]
[1718940381300,2.5426847,3511.4,3511.2,0.878]
[1718940381488,2.5426847,3511.3,3511.2,0.878]
[1718940383514,2.54267552,3511.3,3511.2,0.878]
[1718940386537,2.0494238,3511.3,3511.2,0.878]
[1718940387213,2.54263528,3511.3,3511.2,0.878]
[1718940389631,2.0494238,3511.3,3511.2,0.878]
[1718940389947,2.54262758,3511.3,3511.2,0.878]
[1718940390104,2.54262763,3511.3,3511.2,0.878]
[1718940390818,2.5426268,3511.3,3511.2,0.878]
[1718940391448,2.0494238,3511.3,3511.2,0.878]
[1718940391967,5.15660274,3512.4,3511.2,0.878]
[1718940392274,1.713,3513.0,3511.7,0.878]
[1718940392275,3.14607716,3512.3,3511.7,0.878]
[1718940392563,2.54261689,3512.2,3511.7,0.878]
[1718940392723,2.54259269,3512.1,3511.7,0.878]
[1718940392930,2.5425906,3512.0,3511.9,0.878]
[1718940393554,2.5425906,3512.0,3511.7,0.878]
[1718940393749,2.5425906,3511.9,3511.7,0.878]
[1718940393940,2.5425906,3511.8,3511.7,0.878]
[1718940396047,2.0494238,3511.8,3511.7,0.878]
[1718940396268,2.5425733,3512.7,3511.7,0.878]
[1718940396465,2.5425733,3512.6,3511.7,0.878]
[1718940396627,2.5425733,3512.5,3511.7,0.878]
[1718940396829,2.5425733,3512.4,3511.7,0.878]
[1718940397048,2.5425733,3512.3,3511.7,0.878]
[1718940397235,2.5425733,3512.2,3511.7,0.878]
[1718940397540,2.5425733,3512.1,3511.7,0.878]
[1718940397773,2.5425733,3512.0,3511.7,0.878]
[1718940397959,2.5425733,3511.9,3511.7,0.878]
[1718940398164,0.5332944,3512.6,3511.7,0.878]
[1718940398165,2.0494238,3511.8,3511.7,0.878]
[1718940398347,2.0494238,3512.5,3511.7,0.878]
[1718940398552,0.878,3512.8,3511.7,0.878]
[1718940398553,2.54257637,3512.4,3511.7,0.878]
[1718940398731,2.54257637,3512.3,3511.7,0.878]
[1718940398933,2.54257637,3512.2,3511.7,0.878]
[1718940399234,2.54257637,3512.2,3511.2,3.0]
[1718940399235,2.54257644,3512.1,3511.2,3.0]
[1718940399561,0.878,3512.8,3511.8,0.878]
[1718940399562,2.54257644,3512.0,3511.8,0.878]
[1718940399743,2.54257644,3511.9,3511.8,0.878]
[1718940400152,2.54257644,3511.9,3511.6,0.878]
[1718940400351,2.0494238,3511.8,3511.6,0.878]
[1718940400670,0.31573071,3512.7,3511.6,0.878]
[1718940400965,2.92500185,3512.6,3511.6,0.878]
[1718940401170,0.878,3512.4,3511.2,3.0]
[1718940401328,0.878,3512.4,3511.3,0.878]
[1718940401329,2.04700185,3512.3,3511.3,0.878]
[1718940401535,2.54016645,3512.2,3511.3,0.878]
[1718940401733,2.8819831,3512.1,3511.3,0.878]
[1718940401930,2.54016645,3512.0,3511.3,0.878]
[1718940402134,2.54016645,3511.9,3511.5,0.878]
[1718940402337,2.54020384,3511.8,3511.7,0.878]
[1718940403442,2.54020384,3511.8,3511.7,1.15071]
[1718940405476,2.04700185,3511.8,3511.7,1.15071]
[1718940405647,0.49318399,3511.8,3511.7,1.15071]
[1718940405854,2.04700185,3511.8,3511.7,0.27271]
[1718940406178,2.54018584,3512.3,3511.7,0.27271]
[1718940406360,2.54018584,3512.2,3511.7,0.27271]
[1718940406567,2.54018584,3512.1,3511.7,0.27271]
[1718940406766,2.54018584,3512.0,3511.7,0.27271]
[1718940406943,2.54018584,3511.9,3511.7,0.27271]
[1718940407143,2.54018584,3511.8,3511.7,0.27271]
[1718940408744,2.54018435,3511.8,3511.7,0.27271]
[1718940409299,2.54018645,3511.8,3511.7,0.27271]
[1718940411850,2.54020415,3511.8,3511.7,0.27271]
[1718940414909,2.04700185,3511.8,3511.7,0.27271]
[1718940415356,0.49320811,3511.8,3511.7,0.27271]
[1718940415550,2.54020996,3512.1,3511.7,0.27271]
[1718940415768,2.54020996,3512.0,3511.7,0.27271]
[1718940415991,2.54020996,3511.9,3511.7,0.27271]
[1718940416166,2.54020996,3511.8,3511.7,0.27271]
[1718940417158,4.82150996,3511.8,3511.7,0.27271]
[1718940418060,4.32830185,3511.8,3511.7,0.27271]
[1718940418492,4.82153757,3511.8,3511.7,0.27271]
[1718940418673,5.30369133,3511.8,3511.7,0.27271]
[1718940419206,6.17449133,3511.8,3511.7,0.27271]
[1718940420302,6.17456628,3511.8,3511.7,0.27271]
[1718940420881,6.17457392,3511.8,3511.7,0.27271]
[1718940422187,1.713,3511.6,3511.2,3.0]
[1718940422374,2.333,3511.1,3510.3,3.0]
[1718940422721,2.333,3510.8,3510.3,3.0]
[1718940423015,2.54032016,3510.7,3510.3,3.0]
[1718940423176,2.54032016,3510.6,3510.3,3.0]
[1718940423376,2.04700185,3510.5,3510.3,3.0]
[1718940423699,2.54041783,3510.4,3510.3,3.0]
[1718940425988,2.04700185,3510.4,3510.3,3.0]
[1718940426274,2.54041841,3510.4,3510.3,3.0]
[1718940426593,2.54041598,3510.4,3510.3,3.0]
[1718940426909,2.04700185,3510.4,3510.3,3.0]
[1718940427415,0.4934201,3510.4,3510.0,0.878]
[1718940427620,2.04700185,3510.3,3510.0,0.878]
[1718940427780,2.333,3510.8,3510.0,0.878]
[1718940428112,2.56570296,3510.7,3510.0,0.878]
[1718940428314,2.56570296,3510.6,3510.0,0.878]
[1718940428514,2.07229321,3510.5,3510.0,2.23137]
[1718940428713,2.07229321,3510.4,3510.0,2.23137]
[1718940428894,2.333,3510.8,3510.0,2.23137]
[1718940429097,2.56564348,3510.7,3510.0,2.23137]
[1718940429298,2.56564348,3510.6,3510.0,2.23137]
[1718940429521,2.07224804,3510.5,3510.0,2.23137]
[1718940429701,2.333,3510.8,3510.0,2.23137]
[1718940429905,2.56563559,3510.7,3510.0,2.23137]
[1718940430089,2.56563559,3510.6,3510.0,2.23137]
[1718940430285,2.07224164,3510.5,3510.0,2.23137]
[1718940430487,2.07226184,3510.4,3510.0,2.23137]
[1718940430785,2.333,3510.8,3510.0,2.23137]
[1718940430985,2.56567244,3510.7,3510.0,0.878]
[1718940431195,2.56567244,3510.6,3510.0,0.878]
[1718940431506,2.07226309,3510.5,3510.0,0.878]
[1718940431675,8.43559999,3512.2,3510.4,0.878]
[1718940431676,2.88965739,3511.7,3510.4,0.878]
[1718940431881,3.47380207,3511.6,3510.7,0.878]
[1718940432080,2.56532095,3511.5,3510.5,0.878]
[1718940432280,2.56532095,3511.4,3510.5,0.878]
[1718940432513,3.00050116,3511.3,3510.5,0.878]
[1718940432677,2.07195274,3511.2,3510.5,0.878]
[1718940432880,2.07195274,3511.1,3510.5,0.878]
[1718940433078,0.878,3511.5,3510.5,0.878]
[1718940433310,2.47776103,3511.4,3510.5,0.878]
[1718940433495,2.56520259,3511.3,3510.5,0.878]
[1718940433701,2.56520259,3511.2,3510.5,0.878]
[1718940434015,2.07189292,3511.1,3510.5,0.878]
[1718940434221,0.40586811,3511.4,3510.5,0.878]
[1718940434407,2.29112659,3511.3,3510.2,10.37]
[1718940434613,2.56520122,3511.2,3510.5,0.878]
[1718940434811,2.56520122,3511.1,3510.5,0.878]
[1718940435015,0.21923492,3511.3,3510.5,0.878]
[1718940435311,2.07189263,3511.2,3510.5,0.878]
[1718940435512,0.49330978,3511.1,3510.5,0.878]
[1718940435710,2.3396,3511.0,3510.2,10.37]
[1718940435913,2.07214608,3510.9,3510.2,10.37]
[1718940436129,2.56551002,3510.9,3510.2,3.0]
[1718940436314,2.56551002,3510.8,3510.2,0.878]
[1718940436502,2.56551002,3510.7,3510.2,3.878]
[1718940436710,2.3396,3511.0,3510.2,3.878]
[1718940436923,2.56557195,3510.9,3510.2,3.878]
[1718940437103,2.56557195,3510.8,3510.2,3.878]
[1718940437319,2.56557195,3510.7,3510.2,3.878]
[1718940437526,2.3396,3511.0,3510.2,3.878]
[1718940437835,2.07215314,3510.9,3510.2,3.878]
[1718940438028,2.07215314,3510.9,3510.3,0.62753]
[1718940438534,2.07215314,3510.9,3510.4,0.878]
[1718940438730,2.07215314,3510.8,3510.4,0.878]
[1718940438948,2.57233492,3511.3,3510.4,0.878]
[1718940439240,2.0721202,3511.2,3510.9,0.878]
[1718940439412,7.4,3512.9,3510.9,0.878]
[1718940439413,2.07191164,3511.1,3510.9,0.878]
[1718940439605,2.4427,3511.7,3510.9,0.878]
[1718940439807,2.07185965,3511.6,3510.7,3.0]
[1718940440019,2.07185965,3511.6,3510.7,3.878]
[1718940440628,2.07185965,3511.6,3510.9,0.878]
[1718940440809,2.07185965,3511.6,3510.7,3.0]
[1718940441015,2.07185965,3511.6,3510.7,3.878]
[1718940442200,2.07185965,3511.6,3510.7,5.28907]
[1718940444143,2.07185965,3511.6,3510.9,0.878]
[1718940444730,2.07185965,3511.6,3511.0,2.4781]
[1718940444914,2.07185965,3511.5,3511.0,5.4781]
[1718940445119,2.07185965,3511.4,3511.0,5.4781]
[1718940445321,2.07185965,3511.3,3511.1,0.63561]
[1718940445538,3.2563,3512.0,3511.1,3.0]
[1718940445731,2.07178246,3511.9,3511.0,5.4781]
[1718940446448,2.07177873,3511.8,3511.1,0.878]
[1718940446747,2.07177873,3511.7,3511.2,0.63561]
[1718940446928,2.07177873,3511.6,3511.2,0.63561]
[1718940447123,2.07177873,3511.5,3511.2,0.63561]
[1718940447361,2.07177873,3511.4,3511.2,0.63561]
[1718940447567,2.3783,3512.0,3511.3,0.699171]
[1718940447871,2.56491274,3511.9,3511.3,0.699171]
[1718940448050,2.56491274,3511.8,3511.1,3.878]
[1718940448213,2.56491274,3511.7,3511.5,0.878]
[1718940448558,0.49320463,3511.6,3511.5,0.878]
[1718940448717,0.49320463,3512.3,3511.6,2.2636]
[1718940448918,2.07138473,3512.2,3511.6,5.2636]
[1718940449224,0.49320463,3512.1,3511.6,5.2636]
[1718940449425,2.07138473,3512.0,3511.7,1.49216]
[1718940449655,0.49320463,3511.9,3511.7,4.49216]
[1718940450128,0.49320463,3512.6,3511.7,4.49216]
[1718940450329,2.07133928,3512.5,3511.7,4.49216]
[1718940450653,0.49320463,3512.4,3511.7,3.878]
[1718940450855,2.07133928,3512.3,3511.7,3.878]
[1718940451027,0.49320463,3512.2,3511.7,3.878]
[1718940451232,2.07133928,3512.1,3511.7,3.878]
[1718940451433,2.07133928,3512.1,3511.8,0.61416]
[1718940451634,0.49317067,3512.0,3511.8,0.61416]
[1718940452023,0.49317067,3512.6,3511.8,0.61416]
[1718940452217,2.07131122,3512.5,3511.7,3.878]
[1718940452456,0.49317067,3512.4,3511.7,3.878]
[1718940452632,2.07131122,3512.3,3511.7,3.878]
[1718940452838,0.49317067,3512.2,3511.7,3.878]
[1718940453035,2.07131122,3512.1,3511.7,3.878]
[1718940453365,2.07131122,3512.1,3511.8,0.61416]
[1718940453534,2.07131122,3512.0,3511.8,0.61416]
[1718940453860,2.4062,3512.7,3511.8,0.61416]
[1718940454055,3.4424782,3512.6,3511.7,3.878]
[1718940454361,2.5644782,3512.5,3511.7,3.878]
[1718940454661,2.07130951,3512.4,3511.7,3.878]
[1718940454965,2.07130951,3512.3,3511.7,3.878]
[1718940455124,2.56449059,3512.2,3511.7,4.49216]
[1718940455467,2.4062,3512.7,3511.7,4.49216]
[1718940455468,2.56449059,3512.1,3511.7,4.49216]
[1718940455627,2.07130951,3512.0,3511.7,4.49216]
[1718940455820,2.4062,3512.7,3511.7,4.49216]
[1718940456055,2.56450487,3512.6,3511.7,4.49216]
[1718940456257,2.56450487,3512.5,3511.7,4.49216]
[1718940456456,2.56450487,3512.4,3511.7,4.49216]
[1718940456765,2.56450487,3512.3,3511.7,4.49216]
[1718940456924,2.56450487,3512.2,3511.7,4.49216]
[1718940457124,2.56450487,3512.1,3511.7,4.49216]
[1718940457346,2.07132977,3512.0,3511.8,0.675576]
[1718940457549,2.4062,3512.7,3511.8,0.675576]
[1718940457763,2.56451927,3512.6,3511.7,3.878]
[1718940458072,2.56451928,3512.5,3511.7,3.878]
[1718940458241,2.56451928,3512.4,3511.7,3.878]
[1718940458440,2.56451928,3512.3,3511.7,3.878]
[1718940458662,2.56451928,3512.2,3511.7,4.49216]
[1718940458863,2.56451928,3512.1,3511.7,4.49216]
[1718940459183,2.07134334,3512.0,3511.7,4.49216]
[1718940459348,2.07134334,3511.9,3511.7,3.0]
[1718940459554,2.4908,3512.5,3511.6,3.0]
[1718940459738,2.4908,3512.3,3511.4,0.878]
[1718940459939,2.56457674,3512.2,3511.4,0.878]
[1718940460166,2.56457674,3512.1,3511.4,0.878]
[1718940460384,2.56457674,3512.0,3511.4,0.878]
[1718940460540,2.56457674,3511.9,3511.4,0.878]
[1718940460741,2.4908,3512.3,3511.4,0.878]
[1718940460742,2.07139059,3511.8,3511.4,2.23559]
[1718940460975,2.4908,3512.3,3511.4,2.23559]
[1718940461280,2.56464258,3512.2,3511.4,0.878]
[1718940461490,2.07144291,3512.1,3511.3,3.0]
[1718940461636,2.56464029,3512.0,3511.4,0.878]
[1718940461843,2.4908,3511.8,3511.3,3.0]
[1718940462092,2.56469768,3511.7,3511.3,3.0]
[1718940462380,2.56469768,3511.6,3511.3,3.0]
[1718940462555,2.56469768,3511.5,3511.3,3.0]
[1718940462752,2.56469768,3511.4,3511.3,3.0]
[1718940462956,2.07144291,3511.4,3511.3,3.0]
[1718940463172,2.4908,3511.8,3511.3,3.0]
[1718940463478,2.56485513,3511.7,3511.3,3.0]
[1718940463785,2.56485513,3511.6,3511.3,3.0]
[1718940464080,2.56485513,3511.5,3511.3,3.0]
[1718940464293,2.4908,3511.8,3511.3,3.0]
[1718940464441,2.5648788,3511.7,3511.3,3.0]
[1718940464638,2.5648788,3511.6,3511.3,3.0]
[1718940464867,2.5648788,3511.5,3511.3,3.0]
[1718940465179,2.07163361,3511.4,3511.3,3.0]
[1718940465367,2.4644,3512.0,3511.3,3.0]
[1718940465565,2.92401156,3511.9,3511.3,3.0]
[1718940465769,2.56486356,3511.8,3511.3,3.0]
[1718940465946,2.56486356,3511.7,3511.3,3.0]
[1718940466147,2.56486356,3511.6,3511.3,3.0]
[1718940466350,2.56486356,3511.5,3511.3,3.0]
[1718940466709,2.56486356,3511.4,3511.3,3.0]
[1718940466858,2.56486675,3511.4,3511.3,3.0]
[1718940467058,2.07162051,3511.4,3511.3,3.0]
[1718940467711,2.5648654,3511.9,3511.3,3.0]
[1718940467993,3.06779194,3511.8,3511.3,3.0]
[1718940468192,2.5648654,3511.7,3511.3,3.0]
[1718940468389,2.5648654,3511.6,3511.3,3.878]
[1718940468592,2.5648654,3511.5,3511.3,3.878]
[1718940468895,2.5648654,3511.4,3511.3,3.878]
[1718940470571,2.07162051,3511.4,3511.3,3.878]
[1718940470769,0.49324534,3511.4,3511.3,3.878]
[1718940471105,2.56486585,3511.8,3511.3,3.878]
[1718940471258,2.56486585,3511.7,3511.3,3.878]
[1718940471465,2.56486585,3511.6,3511.3,3.878]
[1718940471689,2.56486585,3511.5,3511.3,3.878]
[1718940472000,2.56486585,3511.4,3511.3,3.878]
[1718940472157,2.56486585,3511.4,3511.3,0.878]
[1718940473789,2.56486593,3511.4,3511.3,0.878]
[1718940475895,2.56486593,3511.4,3511.3,1.2658]
[1718940476901,2.07162051,3511.4,3511.3,1.2658]
[1718940477103,2.56484994,3511.4,3511.3,1.2658]
[1718940477258,2.07162051,3511.4,3511.3,1.2658]
[1718940477458,0.49323674,3511.4,3511.3,1.2658]
[1718940477658,2.56485725,3512.1,3511.3,1.2658]
[1718940477933,2.56485725,3512.0,3511.3,0.878]
[1718940478192,2.56485955,3511.9,3511.5,0.878]
[1718940478495,2.56485955,3511.8,3511.7,0.878]
[1718940480156,2.07162051,3511.8,3511.7,0.878]
[1718940480373,2.56479991,3511.8,3511.7,0.878]
[1718940480585,2.56479991,3511.8,3511.7,1.49804]
[1718940480771,2.56479991,3511.8,3511.7,3.76434]
[1718940480987,0.4931794,3511.8,3511.7,6.76434]
[1718940481199,0.4931794,3512.5,3511.7,6.76434]
[1718940481419,2.07115869,3512.4,3512.0,0.878]
[1718940481720,0.4931794,3512.3,3511.9,0.878]
[1718940481870,2.07115869,3512.2,3511.9,0.878]
[1718940482075,0.4931794,3512.1,3511.9,0.878]
[1718940482387,2.07115869,3512.0,3511.9,0.878]
[1718940482584,2.56428659,3512.0,3511.9,1.5600734]
[1718940484321,2.07115869,3512.0,3511.9,1.5600734]
[1718940484518,2.07115869,3512.5,3511.9,1.5600734]
[1718940484728,0.49312665,3512.4,3511.9,1.5600734]
[1718940484906,2.07115869,3512.3,3512.0,0.68263734]
[1718940485219,0.49312665,3512.2,3512.0,0.68263734]
[1718940485376,2.07115869,3512.1,3512.0,0.68263734]
[1718940485572,2.07115869,3512.1,3512.0,4.01193734]
[1718940485886,4.63539685,3512.1,3512.0,7.01193734]
[1718940486426,4.1422756,3512.1,3512.0,7.01193734]
[1718940486581,4.63539896,3512.1,3512.0,7.01193734]
[1718940487309,4.1422756,3512.1,3512.0,6.81363734]
[1718940488778,2.07115869,3512.1,3512.0,6.81363734]
[1718940489024,2.07115869,3512.1,3512.0,5.93563734]
[1718940489235,4.14221001,3512.1,3512.0,6.81363734]
[1718940491121,4.14221001,3512.1,3512.0,4.56063734]
[1718940491794,4.14221001,3512.1,3512.0,1.56063734]
[1718940492003,2.07115869,3512.1,3512.0,1.56063734]
[1718940492384,2.07115869,3512.7,3512.0,1.56063734]
[1718940492582,2.56428568,3512.6,3512.0,1.56063734]
[1718940492810,2.56428568,3512.5,3512.1,0.39742719]
[1718940493076,2.56428597,3512.4,3512.1,0.39742719]
[1718940493383,2.56428597,3512.3,3512.1,0.39742719]
[1718940493719,2.3674,3512.8,3512.2,0.49580645]
[1718940494029,2.5642533,3512.7,3512.1,0.39742719]
[1718940494228,2.07112589,3512.6,3512.1,0.39742719]
[1718940494435,2.5642533,3512.6,3512.1,0.39742719]
[1718940494587,2.3674,3512.8,3511.9,3.0]
[1718940494588,4.8796533,3512.5,3511.9,3.0]
[1718940494905,2.5642533,3512.4,3511.8,3.0]
[1718940495115,2.5642533,3512.3,3511.8,3.0]
[1718940495446,2.3154,3512.5,3511.8,3.0]
[1718940495447,2.56427317,3512.2,3511.8,3.0]
[1718940495731,2.56427317,3512.1,3511.8,3.0]
[1718940496031,2.07112589,3512.0,3511.8,3.0]
[1718940496186,2.07112589,3511.9,3511.8,4.36637]
[1718940496527,2.07112589,3511.9,3511.8,3.0]
[1718940496960,2.07112589,3512.4,3511.7,0.878]
[1718940497127,0.49314552,3512.3,3511.7,0.878]
[1718940497332,2.07112589,3512.2,3511.7,0.878]
[1718940497546,0.49314552,3512.1,3511.7,0.878]
[1718940497757,2.07112589,3512.0,3511.8,0.62937]
[1718940497959,2.07112589,3512.0,3511.9,0.878]
[1718940498133,2.07112589,3512.4,3511.9,0.878]
[1718940498471,2.07112589,3512.3,3511.9,1.328737]
[1718940498621,2.07112589,3512.2,3511.9,0.878]
[1718940498959,0.49314511,3512.1,3511.9,0.878]
[1718940499257,2.07112589,3512.0,3511.9,0.878]
[1718940499929,2.07112589,3512.4,3511.9,0.878]
[1718940500141,2.56427105,3512.3,3511.9,0.878]
[1718940500364,2.56427105,3512.2,3511.9,0.878]
[1718940500573,2.07112589,3512.1,3511.9,0.878]
[1718940501084,2.07112589,3512.0,3511.9,0.878]
[1718940501232,2.56426748,3512.0,3511.9,0.878]
[1718940501755,2.07112589,3512.0,3511.9,0.878]
[1718940501919,2.07112589,3512.4,3511.9,1.2658]
[1718940502115,2.56425852,3512.3,3511.9,0.878]
[1718940502367,2.56425852,3512.2,3511.9,0.878]
[1718940502665,2.56425852,3512.1,3511.9,0.878]
[1718940502834,2.07112589,3512.0,3511.9,0.878]
[1718940503236,0.49312989,3512.0,3511.9,1.2658]
[1718940503454,2.07112589,3512.0,3511.9,1.2658]
[1718940503661,0.49312989,3512.0,3511.9,1.2658]
[1718940503968,2.56425578,3512.1,3511.9,1.2658]
[1718940504174,2.56425578,3512.0,3511.9,0.878]
[1718940504833,2.07112589,3512.0,3511.9,0.878]
[1718940505037,0.49313425,3512.0,3511.9,0.878]
[1718940505275,2.56426014,3512.3,3511.9,0.878]
[1718940505423,2.3154,3512.5,3511.9,0.878]
[1718940505424,2.56426014,3512.2,3511.9,0.878]
[1718940505628,2.56426014,3512.1,3511.9,0.878]
[1718940505852,2.56426014,3512.0,3511.9,0.878]
[1718940506048,2.56426014,3512.0,3511.9,1.2658]
[1718940508002,2.07112589,3512.0,3511.9,1.2658]
[1718940508138,2.07112589,3512.4,3511.9,1.2658]
[1718940508343,0.49313342,3512.0,3511.9,0.878]
[1718940508521,2.07112589,3512.2,3511.9,0.878]
[1718940508725,2.07112589,3512.1,3511.9,0.878]
[1718940508951,2.56425968,3512.0,3511.9,0.878]
[1718940509281,2.56425852,3512.0,3511.9,1.23588582]
[1718940510430,2.56425852,3512.0,3511.6,3.0]
[1718940510633,2.56425852,3511.9,3511.6,0.878]
[1718940510832,2.56425852,3511.8,3511.6,0.878]
[1718940511041,2.56425852,3511.7,3511.6,0.878]
[1718940511237,2.56430361,3511.7,3511.6,0.878]
[1718940511444,2.56430361,3511.7,3511.6,1.51223]
[1718940514257,2.07112589,3511.7,3511.6,1.51223]
[1718940514431,2.56431103,3511.7,3511.6,1.51223]
[1718940517468,2.56430547,3511.7,3511.6,1.51223]
[1718940520690,2.07112589,3511.7,3511.6,1.51223]
[1718940520886,2.56430131,3512.2,3511.6,1.51223]
[1718940521093,2.56430131,3512.1,3511.6,0.878]
[1718940521293,2.56430131,3512.0,3511.6,0.878]
[1718940521589,2.56430131,3511.9,3511.6,0.878]
[1718940521799,2.56430131,3511.8,3511.6,0.878]
[1718940521963,2.56430131,3511.7,3511.6,0.878]
[1718940523620,2.56430131,3511.7,3511.5,3.0]
[1718940523621,2.56430433,3511.7,3511.5,3.0]
[1718940523918,2.56430742,3511.6,3511.3,3.0]
[1718940524128,2.07112589,3511.5,3511.3,3.737]
[1718940524277,2.2869,3512.3,3511.5,0.878]
[1718940524487,2.5645279,3512.2,3511.5,0.878]
[1718940524675,2.5645279,3512.1,3511.5,0.878]
[1718940524880,2.5645279,3512.0,3511.5,0.878]
[1718940525116,2.5645279,3511.9,3511.5,0.878]
[1718940525317,2.5645279,3511.8,3511.5,0.878]
[1718940525491,2.5645279,3511.7,3511.5,0.878]
[1718940525693,2.5645279,3511.6,3511.5,2.32358]
[1718940526012,2.5645279,3511.6,3511.5,0.878]
[1718940527037,2.07134683,3511.6,3511.5,0.878]
[1718940527484,2.56452776,3512.1,3511.5,0.878]
[1718940527686,2.56452776,3512.0,3511.5,0.878]
[1718940527885,2.56452776,3511.9,3511.5,0.878]
[1718940528113,2.2869,3512.3,3511.6,0.4615]
[1718940528114,2.56452776,3511.8,3511.6,0.4615]
[1718940528319,2.56452776,3511.7,3511.6,0.4615]
[1718940528533,2.56452776,3511.7,3511.5,0.878]
[1718940528848,2.56452776,3511.6,3511.5,0.878]
[1718940530243,2.07134683,3511.6,3511.5,0.878]
[1718940530401,2.56451113,3512.2,3511.5,0.878]
[1718940530597,2.56451113,3512.1,3511.7,0.878]
[1718940530859,2.56451113,3512.0,3511.7,0.878]
[1718940531007,2.56451113,3511.9,3511.7,0.878]
[1718940531208,2.56451113,3511.8,3511.7,0.878]
[1718940532404,2.56451113,3511.8,3511.5,0.878]
[1718940532602,2.56451113,3511.7,3511.5,0.878]
[1718940532949,2.56451113,3511.6,3511.5,0.878]
[1718940533242,2.07134683,3511.6,3511.5,0.878]
[1718940533409,2.56453085,3511.6,3511.5,0.878]
[1718940536254,2.56453085,3511.6,3511.5,2.459358]
[1718940537647,2.56453085,3511.6,3511.5,0.878]
[1718940539611,2.56452238,3511.6,3511.5,0.878]
[1718940542138,2.5645211,3511.6,3511.5,0.878]
[1718940542442,2.07134683,3511.6,3511.5,0.878]
[1718940542606,0.49317373,3511.6,3511.5,0.878]
[1718940542807,2.07134683,3511.6,3511.5,0.878]
[1718940543008,0.49317373,3511.6,3511.5,0.878]
[1718940543237,2.07134683,3511.6,3511.5,0.878]
[1718940543439,2.56452025,3511.6,3511.5,0.878]
[1718940543860,2.56452025,3511.6,3511.3,3.0]
[1718940544011,2.56452025,3511.5,3511.0,3.0]
[1718940544218,2.56452025,3511.4,3511.3,0.878]
[1718940545351,2.56457053,3511.4,3511.3,0.878]
[1718940548566,2.56460502,3511.4,3511.3,0.878]
[1718940548719,2.56460502,3511.4,3511.3,1.50527]
[1718940549960,2.56460502,3511.4,3511.3,0.62727]
[1718940550116,2.56460502,3511.4,3511.3,1.50527]
[1718940551144,2.12460502,3511.4,3511.3,1.50527]
[1718940551474,4.55841221,3511.4,3511.1,3.0]
[1718940551765,2.07141221,3511.3,3511.1,0.878]
[1718940551980,2.07141221,3511.3,3510.8,3.0]
[1718940552255,2.487,3511.4,3511.0,0.878]
[1718940552256,4.14307902,3511.2,3511.0,0.878]
[1718940552459,4.14307902,3511.1,3510.9,1.32781562]
[1718940552666,4.14307902,3511.0,3510.9,1.32781562]
[1718940553038,4.14307902,3511.0,3510.9,0.878]
[1718940554485,2.07141221,3511.0,3510.9,0.878]
[1718940554636,4.14308619,3511.0,3510.9,0.878]
[1718940557664,2.07141221,3511.0,3510.4,3.0]
[1718940557865,6.52627156,3510.9,3510.4,5.2601087]
[1718940558067,2.07141221,3510.8,3510.4,3.878]
[1718940558272,4.14345683,3510.7,3510.4,3.0]
[1718940558473,4.14345683,3510.6,3510.2,0.878]
[1718940558628,2.3831,3510.9,3510.2,0.878]
[1718940558629,4.14345683,3510.5,3510.2,0.878]
[1718940558834,2.3831,3510.9,3510.2,0.878]
[1718940558835,4.14364269,3510.4,3510.2,0.878]
[1718940559034,4.14364269,3510.3,3510.2,0.878]
[1718940559266,4.14364269,3510.3,3510.2,2.0028]
[1718940559964,4.14364269,3510.3,3510.2,1.1248]
[1718940560173,4.14364269,3510.3,3510.0,3.0]
[1718940560174,6.52544269,3510.3,3510.0,3.0]
[1718940560469,6.52544269,3510.3,3509.6,7.37]
[1718940560470,4.14364269,3510.2,3509.7,3.0]
[1718940560685,4.14364269,3510.1,3509.8,2.5052]
[1718940560838,2.3818,3510.3,3509.8,2.5052]
[1718940560839,2.07141221,3510.0,3509.9,3.878]
[1718940561036,2.07249136,3510.0,3509.9,3.878]
[1718940561253,2.07141221,3510.0,3509.9,5.25332]
[1718940561565,4.14384733,3510.0,3509.9,5.25332]
[1718940562277,2.07243512,3510.0,3509.9,5.25332]
[1718940562789,2.07243512,3510.2,3509.9,5.25332]
[1718940562943,2.07238887,3510.1,3509.9,3.878]
[1718940563150,2.07243512,3510.0,3509.9,3.878]
[1718940563356,2.3818,3510.3,3509.9,3.878]
[1718940563569,4.14479974,3510.2,3509.9,3.878]
[1718940563769,2.07241068,3510.1,3509.9,3.878]
[1718940563967,2.3818,3510.3,3509.9,3.878]
[1718940564273,2.07241064,3510.2,3509.9,3.878]
[1718940564857,2.07241064,3510.2,3509.9,3.0]
[1718940565865,2.3818,3510.3,3509.9,3.0]
[1718940566074,2.3818,3510.3,3510.0,0.63832]
[1718940566254,2.3818,3510.3,3510.0,1.51632]
[1718940567447,2.3277,3510.9,3510.2,0.878]
[1718940567694,4.14447468,3510.8,3510.2,0.878]
[1718940567880,4.14447468,3510.7,3510.2,0.878]
[1718940568050,2.07214624,3510.6,3510.2,0.878]
[1718940568252,2.3277,3510.9,3510.2,0.878]
[1718940568483,4.14428554,3510.8,3510.2,0.878]
[1718940568786,2.07213876,3510.7,3510.2,0.878]
[1718940568985,2.3277,3510.9,3510.2,0.878]
[1718940569162,4.14426288,3510.8,3510.2,0.878]
[1718940569369,2.07212563,3510.7,3510.2,0.878]